fUST/lending_fUST_20250809
["ID","MTS","AMOUNT","RATE_DAILY","PERIOD"]
[378134543,1754741442802,-460.0,0.00022191,2]
[378134545,1754741442812,-460.0,0.00022191,2]
[378134547,1754741442822,-460.0,0.00022191,2]
[378134549,1754741442832,-988.88,0.00022191,2]
[378134552,1754741442842,-460.0,0.00022191,2]
[378134554,1754741442852,-460.0,0.00022191,2]
[378134556,1754741442861,-460.0,0.00022191,2]
[378134558,1754741442871,-460.0,0.00022191,2]
[378134560,1754741442880,-1182.93,0.00022191,2]
[378134562,1754741442891,-460.0,0.00022191,2]
[378134566,1754741442900,-460.0,0.00022191,2]
[378134568,1754741442910,-676.95,0.00022191,2]
[378134570,1754741442919,-460.0,0.00022191,2]
[378134572,1754741442929,-757.14,0.00022191,2]
[378134574,1754741442939,-872.23,0.00022191,2]
[378134576,1754741442950,-460.0,0.00022191,2]
[378134578,1754741442960,-1862.94,0.00022191,2]
[378134580,1754741442969,-1583.09,0.00022191,2]
[378134582,1754741442979,-460.0,0.00022191,2]
[378134584,1754741442988,-605.05,0.00022191,2]
[378134586,1754741442998,-200.0,0.00022252,15]
[378134588,1754741443008,-200.0,0.00022252,15]
[378134591,1754741443017,-200.0,0.00022252,15]
[378134593,1754741443027,-200.0,0.00022252,15]
[378134595,1754741443036,-200.0,0.00022252,15]
[378134597,1754741443046,-227.80512684,0.00022365,2]
[378134599,1754741443055,-500.0,0.00022421,2]
[378134601,1754741443065,-505.1922163,0.00022421,2]
[378134603,1754741443075,-460.0,0.00022464,2]
[378134606,1754741443085,-460.0,0.00022464,2]
[378134608,1754741443096,-460.0,0.00022464,2]
[378134610,1754741443106,-460.0,0.00022464,2]
[378134612,1754741443115,-460.0,0.00022464,2]
[378134614,1754741443124,-291.79793677,0.00022464,2]
[378134616,1754741443133,-460.0,0.00022464,2]
[378134618,1754741443142,-219.97991401,0.00022464,2]
[378134620,1754741443151,-471.27,0.00022464,2]
[378134622,1754741443162,-460.0,0.00022464,2]
[378134624,1754741443171,-460.0,0.00022464,2]
[378134626,1754741443181,-460.0,0.00022464,2]
[378134628,1754741443190,-460.0,0.00022464,2]
[378134630,1754741443199,-460.0,0.00022464,2]
[378134632,1754741443208,-235.90917972,0.00022464,2]
[378134634,1754741443218,-460.0,0.00022464,2]
[378134636,1754741443228,-460.0,0.00022464,2]
[378134638,1754741443237,-460.0,0.00022464,2]
[378134640,1754741443246,-153.62966719,0.00022464,2]
[378134642,1754741443256,-460.0,0.00022464,2]
[378134644,1754741443266,-460.0,0.00022464,2]
[378134646,1754741443275,-460.0,0.00022464,2]
[378134648,1754741443285,-460.0,0.00022464,2]
[378134650,1754741443294,-460.0,0.00022464,2]
[378134652,1754741443304,-460.0,0.00022464,2]
[378134654,1754741443313,-460.0,0.00022464,2]
[378134656,1754741443322,-151.69258288,0.00022464,2]
[378134658,1754741443332,-466.12755851,0.00022464,2]
[378134660,1754741443341,-460.0,0.00022464,2]
[378134662,1754741443350,-470.787335,0.00022464,2]
[378134664,1754741443360,-460.0,0.00022464,2]
[378134666,1754741443369,-460.0,0.00022464,2]
[378134668,1754741443378,-460.0,0.00022464,2]
[378134687,1754741443544,-466.21711684,0.00022464,2]
[378134689,1754741443554,-460.0,0.00022464,2]
[378134691,1754741443563,-465.36834167,0.00022464,2]
[378134693,1754741443572,-460.0,0.00022464,2]
[378134695,1754741443582,-460.0,0.00022464,2]
[378134697,1754741443596,-460.0,0.00022464,2]
[378134699,1754741443607,-460.0,0.00022464,2]
[378134701,1754741443620,-460.0,0.00022464,2]
[378134703,1754741443630,-460.0,0.00022464,2]
[378134705,1754741443639,-460.0,0.00022464,2]
[378134707,1754741443649,-460.0,0.00022464,2]
[378134709,1754741443659,-460.0,0.00022464,2]
[378134712,1754741443669,-477.26734911,0.00022464,2]
[378134713,1754741443678,-620.37,0.00022464,2]
[378134716,1754741443689,-470.79662353,0.00022464,2]
[378134718,1754741443698,-515.86,0.00022464,2]
[378134720,1754741443707,-478.87,0.00022464,2]
[378134722,1754741443716,-460.0,0.00022464,2]
[378134724,1754741443726,-460.0,0.00022464,2]
[378134726,1754741443736,-460.0,0.00022464,2]
[378134728,1754741443745,-460.0,0.00022464,2]
[378134730,1754741443754,-460.0,0.00022464,2]
[378134732,1754741443763,-578.32,0.00022464,2]
[378134734,1754741443773,-548.9,0.00022464,2]
[378134736,1754741443782,-651.18,0.00022464,2]
[378134738,1754741443791,-460.0,0.00022464,2]
[378134740,1754741443800,-460.0,0.00022464,2]
[378134742,1754741443810,-480.28414657,0.00022464,2]
[378134744,1754741443818,-460.0,0.00022464,2]
[378134746,1754741443828,-460.0,0.00022464,2]
[378134748,1754741443837,-460.0,0.00022464,2]
[378134750,1754741443846,-779.92,0.00022464,2]
[378134752,1754741443855,-460.0,0.00022464,2]
[378134754,1754741443864,-460.0,0.00022464,2]
[378134756,1754741443874,-460.0,0.00022464,2]
[378134758,1754741443883,-460.0,0.00022464,2]
[378134760,1754741443892,-272.07171489,0.00022464,2]
[378134762,1754741443901,-460.0,0.00022464,2]
[378134764,1754741443911,-460.0,0.00022464,2]
[378134766,1754741443921,-460.0,0.00022464,2]
[378134768,1754741443930,-460.0,0.00022464,2]
[378134770,1754741443940,-460.0,0.00022464,2]
[378134772,1754741443949,-464.42118758,0.00022464,2]
[378134774,1754741443958,-460.0,0.00022464,2]
[378134776,1754741443967,-460.0,0.00022464,2]
[378134778,1754741443977,-460.0,0.00022464,2]
[378134780,1754741443986,-847.56,0.00022464,2]
[378134782,1754741443995,-460.0,0.00022464,2]
[378134784,1754741444004,-460.0,0.00022464,2]
[378134786,1754741444013,-460.0,0.00022464,2]
[378134787,1754741444022,-460.0,0.00022464,2]
[378134788,1754741444032,-460.0,0.00022464,2]
[378134790,1754741444042,-460.0,0.00022464,2]
[378134791,1754741444051,-829.29,0.00022464,2]
[378134792,1754741444060,-460.0,0.00022464,2]
[378134793,1754741444069,-595.37,0.00022464,2]
[378134794,1754741444079,-460.0,0.00022464,2]
[378134795,1754741444089,-460.0,0.00022464,2]
[378134796,1754741444098,-460.0,0.00022464,2]
[378134797,1754741444107,-460.0,0.00022464,2]
[378134798,1754741444116,-460.0,0.00022464,2]
[378134799,1754741444126,-460.0,0.00022464,2]
[378134800,1754741444135,-460.0,0.00022464,2]
[378134801,1754741444144,-460.0,0.00022464,2]
[378134802,1754741444153,-460.0,0.00022464,2]
[378134803,1754741444163,-460.0,0.00022464,2]
[378134804,1754741444173,-460.0,0.00022464,2]
[378134805,1754741444182,-460.0,0.00022464,2]
[378134806,1754741444192,-460.0,0.00022464,2]
[378134807,1754741444201,-621.52,0.00022464,2]
[378134808,1754741444211,-460.0,0.00022464,2]
[378134809,1754741444220,-472.11495975,0.00022464,2]
[378134810,1754741444230,-460.0,0.00022464,2]
[378134811,1754741444240,-467.98,0.00022464,2]
[378134812,1754741444249,-460.0,0.00022464,2]
[378134813,1754741444259,-460.0,0.00022464,2]
[378134814,1754741444269,-463.96587759,0.00022464,2]
[378134815,1754741444278,-460.0,0.00022464,2]
[378134816,1754741444288,-460.0,0.00022464,2]
[378134817,1754741444297,-151.0,0.00022465,7]
[378134818,1754741444306,-231.10873,0.00022465,7]
[378134819,1754741444316,-231.10873,0.00022465,7]
[378134820,1754741444325,-566.18,0.00022465,2]
[378134821,1754741444335,-460.0,0.00022465,2]
[378134822,1754741444344,-460.0,0.00022465,2]
[378134823,1754741444353,-460.0,0.00022465,2]
[378134824,1754741444363,-274.86700745,0.00022465,2]
[378134825,1754741444372,-460.0,0.00022465,2]
[378134826,1754741444382,-460.0,0.00022465,2]
[378134827,1754741444391,-460.0,0.00022465,2]
[378134828,1754741444401,-463.27027894,0.00022465,2]
[378134829,1754741444411,-460.0,0.00022465,2]
[378134830,1754741444420,-460.0,0.00022465,2]
[378134831,1754741444430,-460.0,0.00022465,2]
[378134832,1754741444439,-311.1560046,0.00022465,2]
[378134833,1754741444449,-460.0,0.00022465,2]
[378134834,1754741444459,-668.01,0.00022465,2]
[378134835,1754741444469,-529.39,0.00022465,2]
[378134836,1754741444479,-460.0,0.00022465,2]
[378134837,1754741444491,-460.0,0.00022465,2]
[378134838,1754741444500,-460.0,0.00022465,2]
[378134839,1754741444510,-460.0,0.00022465,2]
[378134840,1754741444520,-484.97529081,0.00022465,2]
[378134841,1754741444530,-483.88859382,0.00022465,2]
[378134842,1754741444540,-674.89,0.00022465,2]
[378134843,1754741444550,-460.0,0.00022465,2]
[378134844,1754741444560,-460.0,0.00022465,2]
[378134845,1754741444571,-460.0,0.00022465,2]
[378134846,1754741444581,-469.97595835,0.00022465,2]
[378134847,1754741444591,-460.0,0.00022465,2]
[378134848,1754741444600,-466.77436631,0.00022465,2]
[378134849,1754741444611,-460.0,0.00022465,2]
[378134850,1754741444622,-460.0,0.00022465,2]
[378134851,1754741444631,-460.0,0.00022465,2]
[378134852,1754741444641,-460.0,0.00022465,2]
[378134853,1754741444651,-460.0,0.00022465,2]
[378134854,1754741444662,-460.0,0.00022465,2]
[378134855,1754741444672,-482.41721454,0.00022465,2]
[378134856,1754741444681,-460.0,0.00022465,2]
[378134857,1754741444693,-460.0,0.00022465,2]
[378134858,1754741444702,-460.0,0.00022465,2]
[378134859,1754741444713,-1036.11,0.00022465,2]
[378134860,1754741444722,-460.0,0.00022465,2]
[378134861,1754741444732,-2166.76,0.00022465,2]
[378134862,1754741444742,-901.83,0.00022465,2]
[378134863,1754741444752,-787.59,0.00022465,2]
[378134864,1754741444761,-3577.23,0.00022465,2]
[378134865,1754741444771,-1883.14,0.00022465,2]
[378134866,1754741444780,-589.1,0.00022465,2]
[378134867,1754741444789,-460.0,0.00022465,2]
[378134868,1754741444799,-460.0,0.00022465,2]
[378134869,1754741444808,-442.16813385,0.00022465,2]
[378134870,1754741444818,-1073.99,0.00022465,2]
[378134871,1754741444827,-363.89062021,0.00022465,2]
[378134872,1754741444837,-460.0,0.00022465,2]
[378134873,1754741444847,-2359.44,0.00022465,2]
[378134874,1754741444857,-460.0,0.00022465,2]
[378134875,1754741444866,-151.57950141,0.00022465,2]
[378134876,1754741444876,-460.0,0.00022465,2]
[378134877,1754741444888,-460.0,0.00022465,2]
[378134878,1754741444898,-460.0,0.00022465,2]
[378134879,1754741444908,-897.65,0.00022465,2]
[378134880,1754741444917,-460.0,0.00022465,2]
[378134881,1754741444926,-2557.2,0.00022465,2]
[378134882,1754741444936,-1727.75,0.00022465,2]
[378134883,1754741444946,-460.0,0.00022465,2]
[378134884,1754741444955,-460.0,0.00022465,2]
[378134885,1754741444965,-471.44,0.00022465,2]
[378134886,1754741444974,-460.0,0.00022465,2]
[378134887,1754741444983,-1964.29,0.00022465,2]
[378134888,1754741444993,-336.20323393,0.00022465,3]
[378134889,1754741445003,-460.0,0.00022465,2]
[378134890,1754741445012,-1417.58,0.00022465,2]
[378134891,1754741445021,-1061.01,0.00022465,2]
[378134892,1754741445031,-570.16,0.00022465,2]
[378134893,1754741445040,-460.0,0.00022465,2]
[378134894,1754741445050,-460.0,0.00022465,2]
[378134895,1754741445060,-460.0,0.00022465,2]
[378134896,1754741445069,-460.0,0.00022465,2]
[378134897,1754741445079,-988.88,0.00022465,2]
[378134898,1754741445088,-460.0,0.00022465,2]
[378134899,1754741445098,-460.0,0.00022465,2]
[378134900,1754741445107,-460.0,0.00022465,2]
[378134901,1754741445117,-230.46860468,0.00022465,2]
[378134902,1754741445126,-1182.93,0.00022465,2]
[378134903,1754741445135,-460.0,0.00022465,2]
[378134904,1754741445145,-460.0,0.00022465,2]
[378134905,1754741445154,-676.95,0.00022465,2]
[378134906,1754741445164,-608.15,0.00022465,2]
[378134907,1754741445174,-872.23,0.00022465,2]
[378134908,1754741445183,-757.14,0.00022465,2]
[378134909,1754741445194,-1862.94,0.00022465,2]
[378134910,1754741445204,-473.1006277,0.00022465,2]
[378134911,1754741445214,-1583.09,0.00022465,2]
[378134912,1754741445223,-460.0,0.00022465,2]
[378134913,1754741445233,-500.0,0.00022473,2]
[378134915,1754741445243,-500.0,0.00022473,2]
[378134916,1754741445253,-500.0,0.00022473,2]
[378134918,1754741445263,-503.43793226,0.00022473,2]
[378134919,1754741445272,-500.0,0.00022473,2]
[378134920,1754741445282,-500.0,0.00022473,2]
[378134921,1754741445292,-500.0,0.00022473,2]
[378134922,1754741445302,-500.0,0.00022473,2]
[378134923,1754741445311,-500.0,0.00022473,2]
[378134925,1754741445320,-631.79656268,0.00022473,2]
[378134926,1754741445330,-500.64574785,0.00022473,2]
[378134927,1754741445340,-314.28283868,0.00022473,2]
[378134928,1754741445350,-500.0,0.00022473,2]
[378134930,1754741445359,-500.0,0.00022473,2]
[378134932,1754741445368,-598.57718967,0.00022473,2]
[378134933,1754741445378,-500.0,0.00022473,2]
[378134934,1754741445388,-500.0,0.00022473,2]
[378134935,1754741445398,-500.0,0.00022473,2]
[378134936,1754741445407,-500.0,0.00022473,2]
[378134937,1754741445417,-400.01581726,0.00022473,2]
[378134938,1754741445426,-160.0,0.00022474,2]
[378134939,1754741445436,-160.0,0.00022474,2]
[378134940,1754741445446,-216.61183532,0.00022474,2]
[378134941,1754741445455,-160.0,0.00022474,2]
[378134943,1754741445465,-312.16666667,0.00022474,2]
[378134944,1754741445476,-231.92402426,0.00022474,2]
[378134945,1754741445485,-160.0,0.00022474,2]
[378134946,1754741445495,-461.55179734,0.00022476,2]
[378134947,1754741445505,-12666.14847857,0.00022487,2]
[378134948,1754741445514,-215.40758176,0.00022487,2]
[378134949,1754741445524,-153.0,0.00022495,2]
[378134950,1754741445534,-153.0,0.00022495,2]
[378134951,1754741445543,-153.0,0.00022495,2]
[378134952,1754741445553,-153.0,0.00022495,2]
[378134953,1754741445562,-153.0,0.00022495,2]
[378134954,1754741445571,-153.0,0.00022495,2]
[378134955,1754741445581,-153.0,0.00022495,2]
[378134956,1754741445591,-153.0,0.00022495,2]
[378134957,1754741445600,-153.0,0.00022495,2]
[378134958,1754741445611,-153.0,0.00022495,2]
[378134959,1754741445622,-153.0,0.00022495,2]
[378134961,1754741445631,-153.0,0.00022495,2]
[378134963,1754741445641,-153.0,0.00022495,2]
[378134965,1754741445651,-153.0,0.00022495,2]
[378134967,1754741445661,-153.0,0.00022495,2]
[378134969,1754741445670,-153.0,0.00022495,2]
[378134971,1754741445680,-153.0,0.00022495,2]
[378134973,1754741445691,-153.0,0.00022495,2]
[378134975,1754741445701,-153.0,0.00022495,2]
[378134977,1754741445710,-153.0,0.00022495,2]
[378134979,1754741445720,-153.0,0.00022495,2]
[378134981,1754741445730,-153.0,0.00022495,2]
[378134983,1754741445739,-153.0,0.00022495,2]
[378134985,1754741445748,-153.0,0.00022495,2]
[378134987,1754741445757,-153.0,0.000225,2]
[378134989,1754741445766,-153.0,0.000225,2]
[378134991,1754741445776,-153.0,0.000225,2]
[378134993,1754741445785,-153.0,0.000225,2]
[378134995,1754741445795,-153.0,0.000225,2]
[378134997,1754741445805,-153.0,0.000225,2]
[378134999,1754741445814,-153.0,0.000225,2]
[378135001,1754741445823,-153.0,0.000225,2]
[378135003,1754741445832,-153.0,0.000225,2]
[378135006,1754741445843,-153.0,0.000225,2]
[378135008,1754741445853,-153.0,0.000225,2]
[378135010,1754741445863,-153.0,0.000225,2]
[378135012,1754741445872,-153.0,0.000225,2]
[378135014,1754741445882,-153.0,0.000225,2]
[378135016,1754741445891,-153.0,0.000225,2]
[378135018,1754741445900,-153.0,0.000225,2]
[378135020,1754741445910,-153.0,0.000225,2]
[378135022,1754741445919,-153.0,0.000225,2]
[378135024,1754741445928,-153.0,0.000225,2]
[378135026,1754741445937,-153.0,0.000225,2]
[378135028,1754741445947,-153.0,0.000225,2]
[378135030,1754741445956,-153.0,0.000225,2]
[378135032,1754741445965,-153.0,0.000225,2]
[378135034,1754741445974,-153.0,0.000225,2]
[378135036,1754741445984,-153.0,0.000225,2]
[378135038,1754741445993,-153.0,0.000225,2]
[378135040,1754741446003,-153.0,0.000225,2]
[378135042,1754741446012,-153.0,0.000225,2]
[378135044,1754741446021,-153.0,0.000225,2]
[378135046,1754741446030,-153.0,0.000225,2]
[378135048,1754741446040,-153.0,0.000225,2]
[378135050,1754741446049,-153.0,0.000225,2]
[378135052,1754741446058,-153.0,0.000225,2]
[378135054,1754741446068,-153.0,0.000225,2]
[378135056,1754741446078,-153.0,0.000225,2]
[378135058,1754741446087,-153.0,0.000225,2]
[378135060,1754741446096,-153.0,0.000225,2]
[378135062,1754741446106,-153.0,0.000225,2]
[378135064,1754741446115,-153.0,0.000225,2]
[378135066,1754741446124,-153.0,0.000225,2]
[378135068,1754741446133,-153.0,0.000225,2]
[378135070,1754741446143,-153.0,0.000225,2]
[378135072,1754741446155,-153.0,0.000225,2]
[378135073,1754741446165,-153.0,0.000225,2]
[378135075,1754741446175,-153.0,0.000225,2]
[378135078,1754741446184,-1090.54686274,0.00022521,2]
[378135080,1754741446194,-910.92394306,0.00022521,2]
[378135082,1754741446203,-1000.0,0.00022521,2]
[378135083,1754741446212,-1000.0,0.00022521,2]
[378135085,1754741446221,-227.80512684,0.00022638,2]
[378135088,1754741446230,-500.0,0.00022721,2]
[378135090,1754741446240,-460.0,0.00022738,2]
[378135091,1754741446249,-460.0,0.00022738,2]
[378135094,1754741446259,-460.0,0.00022738,2]
[378135096,1754741446268,-460.0,0.00022738,2]
[378135097,1754741446278,-460.0,0.00022738,2]
[378135099,1754741446287,-471.27,0.00022738,2]
[378135102,1754741446297,-460.0,0.00022738,2]
[378135104,1754741446307,-460.0,0.00022738,2]
[378135106,1754741446316,-460.0,0.00022738,2]
[378135108,1754741446325,-483.97,0.00022738,2]
[378135110,1754741446335,-460.0,0.00022738,2]
[378135112,1754741446344,-460.0,0.00022738,2]
[378135124,1754741446353,-460.0,0.00022738,2]
[378135128,1754741446482,-460.0,0.00022738,2]
[378135130,1754741446492,-460.0,0.00022738,2]
[378135132,1754741446502,-590.0,0.00022738,2]
[378135134,1754741446512,-460.0,0.00022738,2]
[378135136,1754741446522,-460.0,0.00022738,2]
[378135138,1754741446531,-460.0,0.00022738,2]
[378135140,1754741446541,-460.0,0.00022738,2]
[378135142,1754741446551,-460.0,0.00022738,2]
[378135144,1754741446562,-460.0,0.00022738,2]
[378135147,1754741446571,-620.37,0.00022738,2]
[378135149,1754741446582,-515.86,0.00022738,2]
[378135151,1754741446594,-478.87,0.00022738,2]
[378135153,1754741446603,-460.0,0.00022738,2]
[378135155,1754741446614,-460.0,0.00022738,2]
[378135156,1754741446623,-460.0,0.00022738,2]
[378135158,1754741446632,-460.0,0.00022738,2]
[378135161,1754741446643,-460.0,0.00022738,2]
[378135163,1754741446654,-578.32,0.00022738,2]
[378135165,1754741446664,-548.9,0.00022738,2]
[378135167,1754741446674,-651.18,0.00022738,2]
[378135169,1754741446684,-460.0,0.00022738,2]
[378135171,1754741446694,-587.45656037,0.00022738,2]
[378135173,1754741446704,-460.0,0.00022738,2]
[378135175,1754741446714,-460.0,0.00022738,2]
[378135177,1754741446723,-779.92,0.00022738,2]
[378135179,1754741446732,-460.0,0.00022738,2]
[378135181,1754741446741,-460.0,0.00022738,2]
[378135183,1754741446751,-460.0,0.00022738,2]
[378135185,1754741446760,-460.0,0.00022738,2]
[378135187,1754741446770,-460.0,0.00022738,2]
[378135189,1754741446780,-460.0,0.00022738,2]
[378135191,1754741446790,-460.0,0.00022738,2]
[378135193,1754741446800,-460.0,0.00022738,2]
[378135195,1754741446809,-460.0,0.00022738,2]
[378135197,1754741446819,-456.01625484,0.00022738,2]
[378135199,1754741446828,-847.56,0.00022738,2]
[378135201,1754741446837,-460.0,0.00022738,2]
[378135203,1754741446847,-460.0,0.00022738,2]
[378135205,1754741446856,-460.0,0.00022738,2]
[378135207,1754741446865,-460.0,0.00022738,2]
[378135209,1754741446875,-829.29,0.00022738,2]
[378135211,1754741446884,-460.0,0.00022738,2]
[378135212,1754741446893,-595.37,0.00022738,2]
[378135214,1754741446903,-460.0,0.00022738,2]
[378135216,1754741446914,-460.0,0.00022738,2]
[378135218,1754741446923,-460.0,0.00022738,2]
[378135220,1754741446932,-460.0,0.00022738,2]
[378135222,1754741446942,-460.0,0.00022738,2]
[378135224,1754741446952,-460.0,0.00022738,2]
[378135226,1754741446961,-460.0,0.00022738,2]
[378135228,1754741446970,-460.0,0.00022738,2]
[378135230,1754741446980,-460.0,0.00022738,2]
[378135232,1754741446990,-460.0,0.00022738,2]
[378135234,1754741447000,-460.0,0.00022738,2]
[378135236,1754741447009,-460.0,0.00022738,2]
[378135238,1754741447019,-460.0,0.00022738,2]
[378135240,1754741447028,-621.52,0.00022738,2]
[378135242,1754741447037,-460.0,0.00022738,2]
[378135244,1754741447046,-460.0,0.00022738,2]
[378135246,1754741447056,-467.98,0.00022738,2]
[378135248,1754741447065,-460.0,0.00022738,2]
[378135250,1754741447074,-460.0,0.00022738,2]
[378135252,1754741447084,-460.0,0.00022738,2]
[378135254,1754741447093,-373.046751,0.00022739,7]
[378135256,1754741447103,-460.0,0.00022739,2]
[378135258,1754741447112,-157.42474251,0.00022739,2]
[378135260,1754741447122,-480.28,0.00022739,2]
[378135262,1754741447131,-460.0,0.00022739,2]
[378135264,1754741447141,-668.01,0.00022739,2]
[378135266,1754741447151,-529.39,0.00022739,2]
[378135268,1754741447160,-432.82780024,0.00022739,2]
[378135270,1754741447169,-460.0,0.00022739,2]
[378135272,1754741447179,-674.89,0.00022739,2]
[378135273,1754741447191,-460.0,0.00022739,2]
[378135275,1754741447200,-460.0,0.00022739,2]
[378135277,1754741447209,-460.0,0.00022739,2]
[378135279,1754741447220,-460.0,0.00022739,2]
[378135281,1754741447230,-460.0,0.00022739,2]
[378135283,1754741447239,-460.0,0.00022739,2]
[378135285,1754741447248,-460.0,0.00022739,2]
[378135287,1754741447258,-460.0,0.00022739,2]
[378135289,1754741447268,-460.0,0.00022739,2]
[378135291,1754741447278,-1036.11,0.00022739,2]
[378135293,1754741447287,-460.0,0.00022739,2]
[378135295,1754741447296,-2166.76,0.00022739,2]
[378135296,1754741447306,-901.83,0.00022739,2]
[378135297,1754741447315,-787.59,0.00022739,2]
[378135298,1754741447324,-3577.23,0.00022739,2]
[378135299,1754741447333,-1883.14,0.00022739,2]
[378135300,1754741447342,-589.1,0.00022739,2]
[378135301,1754741447351,-460.0,0.00022739,2]
[378135302,1754741447360,-1073.99,0.00022739,2]
[378135303,1754741447369,-2359.44,0.00022739,2]
[378135304,1754741447378,-460.0,0.00022739,2]
[378135305,1754741447388,-460.0,0.00022739,2]
[378135306,1754741447397,-460.0,0.00022739,2]
[378135307,1754741447406,-460.0,0.00022739,2]
[378135308,1754741447415,-897.65,0.00022739,2]
[378135309,1754741447425,-460.0,0.00022739,2]
[378135310,1754741447434,-2557.2,0.00022739,2]
[378135311,1754741447443,-1727.75,0.00022739,2]
[378135312,1754741447452,-460.0,0.00022739,2]
[378135313,1754741447462,-460.0,0.00022739,2]
[378135314,1754741447471,-471.44,0.00022739,2]
[378135315,1754741447480,-460.0,0.00022739,2]
[378135317,1754741447489,-1964.29,0.00022739,2]
[378135318,1754741447498,-460.0,0.00022739,2]
[378135320,1754741447507,-1417.58,0.00022739,2]
[378135322,1754741447517,-1061.01,0.00022739,2]
[378135324,1754741447526,-570.16,0.00022739,2]
[378135326,1754741447536,-460.0,0.00022739,2]
[378135328,1754741447545,-460.0,0.00022739,2]
[378135330,1754741447554,-988.88,0.00022739,2]
[378135332,1754741447564,-460.0,0.00022739,2]
[378135334,1754741447573,-1182.93,0.00022739,2]
[378135336,1754741447582,-460.0,0.00022739,2]
[378135338,1754741447592,-676.95,0.00022739,2]
[378135340,1754741447601,-872.23,0.00022739,2]
[378135342,1754741447613,-757.14,0.00022739,2]
[378135344,1754741447623,-1862.94,0.00022739,2]
[378135346,1754741447633,-1583.09,0.00022739,2]
[378135348,1754741447642,-460.0,0.00022739,2]
[378135350,1754741447651,-227.80512684,0.00022912,2]
[378135352,1754741447661,-160.0,0.00023,2]
[378135354,1754741447670,-212.10035875,0.00023012,2]
[378135355,1754741447679,-460.0,0.00023012,2]
[378135357,1754741447688,-460.0,0.00023012,2]
[378135359,1754741447698,-460.0,0.00023012,2]
[378135361,1754741447708,-460.0,0.00023012,2]
[378135363,1754741447723,-471.27,0.00023012,2]
[378135366,1754741447732,-460.0,0.00023012,2]
[378135367,1754741447741,-460.0,0.00023012,2]
[378135369,1754741447751,-460.0,0.00023012,2]
[378135371,1754741447760,-460.0,0.00023012,2]
[378135373,1754741447770,-460.0,0.00023012,2]
[378135375,1754741447779,-460.0,0.00023012,2]
[378135377,1754741447788,-465.06219392,0.00023012,2]
[378135379,1754741447797,-620.37,0.00023012,2]
[378135381,1754741447807,-515.86,0.00023012,2]
[378135383,1754741447817,-478.87,0.00023012,2]
[378135385,1754741447826,-460.0,0.00023012,2]
[378135387,1754741447835,-460.0,0.00023012,2]
[378135389,1754741447845,-460.0,0.00023012,2]
[378135391,1754741447854,-460.0,0.00023012,2]
[378135393,1754741447863,-460.0,0.00023012,2]
[378135395,1754741447872,-578.32,0.00023012,2]